bitfinex-derivatives/quotes_ETHF0:USTF0_20251028
["timestamp","ask_amount","ask_price","bid_price","bid_amount"]
[1761659707083,1.628,4151.4,4151.3,3.21057014]
[1761659707084,0.8512,4151.4,4151.3,3.21057014]
[1761659707388,0.8512,4151.4,4151.3,3.28257014]
[1761659707586,0.5479,4151.8,4151.6,0.43359]
[1761659707780,0.5479,4151.8,4151.3,3.21057014]
[1761659707983,0.5479,4151.8,4151.6,0.43359]
[1761659708177,0.5479,4151.8,4151.5,0.4336]
[1761659708385,0.4988,4151.7,4151.5,0.4336]
[1761659708687,0.4988,4151.7,4151.3,3.21057014]
[1761659708688,0.5895,4152.6,4151.7,1.08397]
[1761659708885,0.2286,4152.6,4152.5,3.2078]
[1761659709087,0.7274,4152.6,4152.5,3.2078]
[1761659709390,1.4423,4152.6,4152.5,3.2078]
[1761659709591,1.0642,4152.0,4151.9,3.2078]
[1761659709984,0.7033,4152.0,4151.9,3.2078]
[1761659710176,0.2286,4152.6,4152.3,0.43352]
[1761659710376,0.2286,4152.6,4151.6,1.084]
[1761659710377,0.4988,4152.5,4151.6,1.084]
[1761659710585,0.4988,4152.5,4152.4,3.2078]
[1761659711083,1.2137,4152.5,4152.4,3.2078]
[1761659712282,1.2137,4151.8,4151.7,3.2078]
[1761659712687,1.4182,4151.4,4151.3,0.00277014]
[1761659712882,42.2182,4151.4,4151.3,0.00277014]
[1761659713287,0.4988,4151.8,4151.3,0.00277014]
[1761659713582,0.4988,4151.8,4151.6,3.64139]
[1761659713782,0.4988,4151.8,4151.6,3.2078]
[1761659714086,0.8597,4151.7,4151.6,3.2078]
[1761659714386,1.4182,4151.4,4151.3,0.00277014]
[1761659715491,0.7033,4151.4,4151.3,0.00277014]
[1761659715885,1.0642,4151.4,4151.3,0.00277014]
[1761659716190,1.4182,4151.4,4151.3,0.00277014]
[1761659716784,0.7033,4151.4,4151.3,0.00277014]
[1761659716984,1.0642,4151.4,4151.3,0.00277014]
[1761659717192,1.4182,4151.4,4151.3,0.00277014]
[1761659717992,1.4182,4151.4,4151.3,0.07477014]
[1761659718188,1.4182,4151.4,4151.3,0.00277014]
[1761659719487,42.2182,4151.4,4151.3,0.00277014]
[1761659720686,0.7033,4151.4,4151.3,0.43640014]
[1761659720887,0.7033,4151.4,4151.3,0.00277014]
[1761659721393,1.4182,4151.4,4151.3,0.00277014]
[1761659722100,1.0642,4151.4,4151.3,0.50839014]
[1761659722403,1.0642,4151.4,4151.3,0.00277014]
[1761659722404,1.4182,4151.4,4151.3,0.00277014]
[1761659722603,1.0642,4151.4,4151.3,0.00277014]
[1761659722806,0.4988,4151.8,4151.7,0.43358]
[1761659722993,0.8597,4151.8,4151.7,3.2078]
[1761659723199,0.4988,4151.8,4151.7,3.64138]
[1761659723399,0.4988,4152.0,4151.9,0.43356]
[1761659723704,0.4988,4152.5,4151.9,0.43356]
[1761659723901,0.3609,4151.8,4151.7,3.2078]
[1761659724106,0.8597,4151.8,4151.7,3.64138]
[1761659724700,0.8597,4151.8,4151.7,3.2078]
[1761659725100,0.8597,4151.8,4151.7,3.71338]
[1761659725303,0.4988,4151.8,4151.7,3.2078]
[1761659725905,0.4988,4151.8,4151.7,3.64138]
[1761659726210,0.7033,4152.0,4151.9,0.43356]
[1761659727101,0.7033,4152.0,4151.9,0.50556]
[1761659727303,0.2045,4152.0,4151.9,0.43356]
[1761659727902,0.7033,4152.0,4151.9,0.43356]
[1761659728507,0.4988,4153.1,4152.0,1.08389]
[1761659728706,1.2137,4153.1,4153.0,3.2078]
[1761659728903,1.2137,4153.1,4153.0,3.64125]
[1761659729106,0.50122697,4153.5,4153.0,3.2078]
[1761659729312,0.3609,4153.1,4153.0,3.2798]
[1761659729610,0.8597,4153.1,4153.0,3.2798]
[1761659729811,0.4988,4153.1,4153.0,3.2798]
[1761659730012,0.2045,4153.8,4153.7,0.026]
[1761659730210,0.5654,4154.4,4154.3,0.013]
[1761659730413,0.9194,4154.4,4154.1,0.43333]
[1761659730608,0.9194,4154.4,4154.2,0.43332]
[1761659730808,0.9194,4154.4,4153.7,3.2208]
[1761659730809,0.5654,4153.8,4153.7,3.2078]
[1761659731108,0.56740536,4153.8,4153.7,3.22282854]
[1761659732011,0.00200536,4153.8,4153.7,3.32082854]
[1761659732411,0.50080536,4153.8,4153.7,3.23582854]
[1761659732710,0.00200536,4153.8,4153.7,3.24882854]
[1761659732909,0.00200536,4153.8,4153.7,3.32082854]
[1761659733413,0.00200536,4153.8,4153.7,3.24882854]
[1761659733816,0.00200536,4153.8,4153.7,3.32082854]
[1761659734603,0.00200536,4153.8,4153.7,3.24882854]
[1761659734813,0.5306,4154.6,4154.5,0.43329]
[1761659735003,0.5306,4154.6,4154.5,3.64109]
[1761659735208,0.21272,4154.7,4154.5,3.71309]
[1761659735407,0.21272,4154.7,4154.6,0.072]
[1761659735918,0.215059,4154.7,4154.6,0.072]
[1761659736315,0.215059,4154.7,4154.5,3.2078]
[1761659736512,0.5306,4154.6,4154.5,3.2078]
[1761659736913,0.215059,4154.7,4154.6,0.43328]
[1761659737218,0.745659,4154.7,4154.6,0.43328]
[1761659738019,0.852,4154.6,4154.5,3.2078]
[1761659738208,1.2024,4154.6,4154.5,3.2078]
[1761659738516,0.5306,4154.6,4154.5,3.2078]
[1761659738906,1.2024,4154.6,4154.5,3.2078]
[1761659741715,1.2744,4154.6,4154.5,3.2078]
[1761659742817,0.072,4154.6,4153.7,3.20982854]
[1761659743014,0.215059,4154.7,4154.2,0.3262]
[1761659743015,0.852,4154.3,4154.2,0.3262]
[1761659743210,0.852,4154.3,4154.2,0.6762]
[1761659743418,0.5306,4154.2,4153.7,3.20982854]
[1761659743616,0.3214,4153.8,4153.7,3.53602854]
[1761659743921,1.402,4153.8,4153.7,3.20982854]
[1761659744116,1.474,4153.8,4153.7,0.00202854]
[1761659744920,1.402,4153.8,4153.7,0.00202854]
[1761659745117,1.474,4153.8,4153.7,0.00202854]
[1761659746118,1.402,4153.8,4153.7,0.00202854]
[1761659746314,1.474,4153.8,4153.7,0.00202854]
[1761659746818,42.274,4153.8,4153.7,0.00202854]
[1761659747019,42.202,4153.8,4153.7,0.00202854]
[1761659747525,42.274,4153.8,4153.7,0.32822854]
[1761659747824,42.274,4153.8,4153.7,0.00202854]
[1761659748117,1.402,4153.8,4153.7,0.00202854]
[1761659748327,1.474,4153.8,4153.7,0.00202854]
[1761659748519,1.402,4153.8,4153.7,0.00202854]
[1761659749228,1.474,4153.8,4153.7,0.00202854]
[1761659749714,1.402,4153.8,4153.7,0.00202854]
[1761659750122,1.474,4153.8,4153.7,0.00202854]
[1761659750619,1.474,4153.8,4152.5,0.429]
[1761659750620,1.402,4153.2,4152.5,3.6413]
[1761659750816,1.0516,4152.6,4152.5,4.3175]
[1761659751225,0.1996,4153.2,4152.5,3.2078]
[1761659751226,0.5306,4153.0,4152.5,3.2078]
[1761659751522,1.0516,4152.6,4152.5,3.534]
[1761659751722,1.0516,4152.6,4152.5,3.53569573]
[1761659752027,1.402,4152.6,4152.5,3.53569573]
[1761659752220,1.402,4152.6,4152.5,3.96919573]
[1761659752416,0.5306,4152.6,4152.5,4.31469573]
[1761659752615,1.0516,4153.2,4153.1,0.3262]
[1761659752824,0.8714,4153.2,4152.5,3.20949573]
[1761659753019,0.852,4152.8,4152.7,0.3262]
[1761659753214,0.852,4152.8,4152.7,0.75968]
[1761659753624,0.521,4153.2,4153.1,0.3262]
[1761659753825,0.3214,4152.9,4152.8,0.75967]
[1761659754024,0.852,4152.9,4152.8,0.75967]
[1761659754222,0.852,4152.9,4152.8,1.10967]
[1761659754728,0.852,4152.9,4152.8,0.6762]
[1761659754923,1.2024,4152.9,4152.8,0.6762]
[1761659755724,1.2024,4152.9,4152.8,1.10967]
[1761659755922,0.5306,4152.9,4152.8,1.53867]
[1761659757926,0.852,4152.9,4152.8,1.10967]
[1761659760230,0.852,4152.9,4152.8,1.53867]
[1761659760430,0.1996,4153.2,4152.8,1.1052]
[1761659760726,0.1996,4153.2,4153.1,1.10964]
[1761659760727,0.7302,4153.2,4153.1,1.10964]
[1761659760922,0.7302,4153.2,4152.6,1.08372]
[1761659760923,4.0792,4153.5,4152.8,0.86247]
[1761659761122,0.3214,4152.9,4152.8,1.10967]
[1761659761334,0.852,4152.9,4152.8,1.10967]
[1761659761537,0.5306,4152.9,4152.8,1.53867]
[1761659761726,0.852,4153.2,4153.1,0.6762]
[1761659762322,0.852,4153.2,4153.1,1.1052]
[1761659762529,3.7288,4153.5,4153.4,0.6762]
[1761659762828,0.1996,4154.4,4153.7,1.1052]
[1761659763027,0.5306,4154.3,4153.7,0.429]
[1761659763223,0.5306,4154.3,4153.3,4.29135]
[1761659763224,0.1996,4154.4,4153.8,0.86236]
[1761659763527,0.5306,4154.3,4153.8,0.429]
[1761659763728,0.852,4154.0,4153.9,0.6762]
[1761659764131,1.402,4154.0,4153.9,0.6762]
[1761659764338,0.6718,4153.6,4153.5,0.3262]
[1761659764635,0.1996,4154.0,4153.5,0.3262]
[1761659764930,1.72425675,4156.7,4155.4,0.3325]
[1761659765136,0.195,4158.0,4156.7,0.43306]
[1761659765336,0.195,4158.6,4157.1,0.43302]
[1761659765536,0.195,4157.4,4157.3,0.433]
[1761659765741,0.00305731,4157.4,4157.3,0.71140161]
[1761659766040,40.8,4160.4,4157.3,0.71140161]
[1761659766041,0.195,4159.8,4157.5,1.08244]
[1761659766334,0.195,4160.8,4159.8,0.43273]
[1761659766526,0.195,4160.1,4159.9,1.14413161]
[1761659766726,0.195,4160.1,4160.0,0.71140161]
[1761659766929,0.47598444,4160.8,4160.0,0.71140161]
[1761659766930,0.195,4160.8,4160.0,3.91920161]
[1761659767129,0.6959,4160.8,4160.7,3.2078]
[1761659767327,0.6959,4160.8,4160.7,3.91920161]
[1761659767530,0.6959,4160.8,4160.7,5.18966016]
[1761659767738,1.0412,4160.8,4160.7,3.91920161]
[1761659767926,0.69845081,4160.8,4160.7,3.92109684]
[1761659768131,2.69633525,4160.8,4160.7,3.92109684]
[1761659768528,2.76833525,4160.8,4160.7,4.55178066]
[1761659768738,0.847,4160.6,4160.2,2.92681556]
[1761659768929,3.0387,4159.6,4159.5,0.8410055]
[1761659769244,3.0387,4159.3,4159.2,0.8410055]
[1761659769435,3.0387,4158.9,4158.8,3.2078]
[1761659769630,2.1688,4158.7,4158.6,4.0488055]
[1761659769829,0.5382,4159.2,4158.6,4.02659511]
[1761659770036,1.3218,4159.1,4158.6,4.45945511]
[1761659770338,1.3218,4159.1,4158.9,0.43283]
[1761659770531,0.5382,4159.2,4158.6,3.21089511]
[1761659770532,3.0387,4158.7,4158.6,3.21089511]
[1761659770727,3.0387,4157.9,4157.5,0.61146983]
[1761659770937,1.86,4157.6,4157.5,0.43298]
[1761659771136,1.3218,4157.6,4157.5,1.24868]
[1761659771342,1.3218,4158.3,4157.9,0.43294]
[1761659771538,1.3218,4158.3,4157.4,3.2078]
[1761659771733,1.3218,4158.3,4157.4,3.21019618]
[1761659771940,3.0387,4158.2,4158.1,0.43292]
[1761659772130,1.3218,4158.1,4157.9,0.43294]
[1761659772730,1.3218,4158.1,4158.0,3.2798]
[1761659772935,1.3218,4158.1,4158.0,4.0955]
[1761659773135,1.3218,4158.1,4158.0,4.0235]
[1761659773542,3.0387,4158.1,4157.5,3.2078]
[1761659773745,1.3218,4158.0,4157.7,0.43295]
[1761659774042,1.3218,4158.0,4157.5,3.2078]
[1761659774043,0.00183786,4158.3,4158.2,0.8157]
[1761659774440,1.32363786,4158.3,4158.2,1.24861]
[1761659774640,2.1688,4158.2,4158.1,3.2078]
[1761659775153,1.3218,4158.2,4158.1,4.0235]
[1761659775446,3.0387,4158.2,4158.1,3.2078]
[1761659775642,1.3218,4157.6,4157.5,4.45648]
[1761659778243,0.00183786,4158.3,4158.1,0.43291]
[1761659778442,0.00183786,4158.3,4158.2,2.88001]
[1761659779244,1.32363786,4158.3,4158.2,1.24861]
[1761659779646,0.00183786,4158.3,4158.2,2.88001]
[1761659779851,0.00183786,4158.3,4158.2,2.06431]
[1761659780151,1.32363786,4158.3,4158.2,0.8157]
[1761659780746,0.00183786,4158.3,4158.2,3.21631301]
[1761659780944,0.00183786,4158.3,4158.2,3.14431301]
[1761659782456,1.32363786,4158.3,4158.2,2.32861301]
[1761659782656,0.00183786,4158.3,4158.2,2.32861301]
[1761659783149,0.00183786,4158.3,4158.2,3.14431301]
[1761659784349,0.84883786,4158.3,4158.2,1.51291301]
[1761659784556,3.04053786,4158.3,4158.2,0.69721301]
[1761659785455,3.04053786,4158.3,4158.2,1.51291301]
[1761659785669,1.32363786,4158.3,4158.2,2.32861301]
[1761659786574,3.04053786,4158.3,4158.2,0.69721301]
[1761659787468,3.04053786,4158.3,4158.2,1.96767156]
[1761659788064,3.11253786,4158.3,4158.2,1.96767156]
[1761659788273,1.81315949,4158.3,4158.2,0.69721301]
[1761659788663,2.2551,4158.0,4157.9,2.14553317]
[1761659788973,1.7169,4157.5,4157.4,0.00239618]
[1761659789167,45.7247,4157.5,4157.4,0.00239618]
[1761659789469,45.72762735,4157.5,4157.4,0.00239618]
[1761659789678,45.79962735,4157.5,4157.4,0.00239618]
[1761659790361,46.89482735,4157.5,4157.4,0.00239618]
[1761659792078,0.847,4156.5,4156.4,1.3886]
[1761659792377,2.76854297,4156.9,4156.4,1.39099618]
[1761659792672,2.76854297,4156.9,4156.8,3.19829618]
[1761659792877,2.76854297,4156.9,4156.8,3.1959]
[1761659793175,2.76854297,4156.9,4156.8,3.20055383]
[1761659793572,3.01674297,4156.9,4156.8,3.20055383]
[1761659793874,3.01674297,4156.9,4156.8,2.29645383]
[1761659794469,2.76854297,4156.9,4156.8,3.20055383]
[1761659794967,3.60044297,4156.9,4156.8,3.20055383]
[1761659797871,0.8319,4156.9,4156.8,3.20055383]
[1761659798078,4.0397,4157.4,4156.8,1.81195383]
[1761659798274,4.0397,4157.4,4157.3,5.39849949]
[1761659798475,3.2078,4158.5,4157.9,3.2651]
[1761659798776,0.8319,4158.3,4158.2,3.39458792]
[1761659798968,0.8319,4158.3,4158.2,1.2644]
[1761659799164,1.6638,4158.3,4158.2,1.26679618]
[1761659799368,0.8319,4157.9,4157.8,3.00374645]
[1761659799569,1.6638,4157.9,4157.8,1.2644]
[1761659799776,0.00185225,4158.3,4157.9,1.2644]
[1761659800078,0.8319,4158.2,4158.1,1.2644]
[1761659800273,1.6638,4158.2,4158.1,1.2644]
[1761659800578,1.6638,4158.2,4158.1,2.35049618]
[1761659800779,0.8319,4158.2,4158.1,3.07107946]
[1761659800971,0.8319,4158.2,4158.1,3.07347564]
[1761659801671,0.00185225,4158.3,4158.2,3.2651]
[1761659801872,0.00185225,4158.3,4158.2,4.42338564]
[1761659802177,3.2078,4159.1,4158.2,7.63118564]
[1761659802376,5.7035,4159.1,4159.0,0.00239618]
[1761659802578,5.7035,4159.1,4159.0,0.72297946]
[1761659802880,2.4957,4159.1,4159.0,0.72537564]
[1761659803376,1.66657514,4159.1,4159.0,2.42960245]
[1761659803682,2.57047514,4159.1,4159.0,0.72297946]
[1761659804576,5.77827514,4159.1,4159.0,0.72297946]
[1761659805974,5.70627514,4159.1,4159.0,0.72297946]
[1761659806172,5.70627514,4159.1,4159.0,0.72537564]
[1761659806374,4.87437514,4159.1,4159.0,3.07347564]
[1761659806572,5.77827514,4159.1,4159.0,0.72297946]
[1761659807780,1.6638,4158.7,4158.6,1.2644]
[1761659807968,1.6638,4158.7,4158.6,1.95341344]
[1761659808172,1.7358,4158.7,4158.6,1.95341344]
[1761659808876,1.6638,4158.7,4158.6,1.95580962]
[1761659809077,2.4957,4158.7,4158.6,1.95341344]
[1761659809273,2.4957,4158.7,4158.6,0.68901344]
[1761659809474,2.5677,4158.7,4158.6,0.68901344]
[1761659810779,43.3677,4158.7,4158.6,0.68901344]
[1761659813175,43.3677,4158.7,4158.6,1.96650021]
[1761659813375,43.3677,4158.7,4158.6,0.68901344]
[1761659817183,43.3677,4158.7,4158.6,1.54132198]
[1761659817577,43.2957,4158.7,4158.6,1.54132198]
[1761659818181,42.4638,4158.7,4158.6,3.95650962]
[1761659818379,42.4638,4158.7,4158.6,3.26749618]
[1761659818979,42.4638,4158.7,4158.6,1.26679618]
[1761659819179,42.4638,4158.7,4158.6,1.2644]
[1761659819380,43.3677,4158.7,4158.6,1.2644]
[1761659819582,42.4638,4158.7,4158.6,1.2644]
[1761659819881,42.4638,4158.7,4158.6,2.3481]
[1761659820086,42.4638,4158.7,4158.6,2.35049618]
[1761659820289,42.4638,4158.7,4158.6,3.26749618]
[1761659820476,4.04247514,4159.1,4159.0,1.0837]
[1761659820682,4.87437514,4159.1,4159.0,2.99919618]
[1761659820893,44.0078,4159.7,4159.6,3.2651]
[1761659821185,4.0397,4159.7,4159.6,3.2651]
[1761659821383,4.0397,4160.2,4160.1,1.0837]
[1761659821584,44.8397,4160.2,4160.1,2.3481]
[1761659821890,4.041866,4160.2,4160.1,2.3522612]
[1761659822490,4.873766,4160.2,4160.1,2.3522612]
[1761659822686,3.209966,4160.2,4160.1,3.2692612]
[1761659822986,0.002166,4160.2,4160.1,3.2692612]
[1761659823381,2.930566,4160.2,4160.1,0.0041612]
[1761659823580,2.930566,4160.2,4160.1,1.26616502]
[1761659823789,2.930566,4160.2,4160.1,2.34986502]
[1761659823790,2.098666,4160.2,4160.1,2.34986502]
[1761659823990,5.306466,4160.2,4160.1,2.34986502]
[1761659824186,5.306466,4160.2,4159.5,0.6487]
[1761659824187,0.43276,4159.6,4159.5,2.6494]
[1761659824583,0.43276,4159.6,4159.0,1.50048043]
[1761659824584,0.43281,4159.1,4159.0,1.50048043]
[1761659824785,2.50893,4158.9,4158.8,3.2078]
[1761659825179,2.50893,4158.9,4158.8,3.21262224]
[1761659825385,2.50893,4158.9,4158.8,4.24182224]
[1761659825990,1.47093,4158.9,4158.8,5.29882224]
[1761659826193,1.47093,4158.9,4158.8,6.86512224]
[1761659826690,0.43283,4158.9,4158.8,6.86512224]
[1761659827086,2.50893,4158.9,4158.8,6.86512224]
[1761659827280,2.50893,4158.9,4158.8,5.80812224]
[1761659827482,2.50893,4158.9,4158.8,5.80572606]
[1761659827678,3.89743,4158.9,4158.8,4.77652606]
[1761659827985,3.89743,4158.9,4158.8,1.56872606]
[1761659828589,3.82543,4158.9,4158.8,1.56872606]
[1761659828794,3.89743,4158.9,4158.8,0.00242606]
[1761659829292,3.89743,4158.9,4158.8,1.49172606]
[1761659829488,44.69743,4158.9,4158.8,1.49172606]
[1761659830193,44.69743,4158.9,4158.8,0.00242606]
[1761659830589,2.0365,4158.0,4157.9,0.85178043]
[1761659830792,0.43305,4156.8,4156.7,2.31988677]
[1761659831095,0.43304,4156.9,4156.8,4.2279]
[1761659831285,0.43304,4156.9,4156.8,4.30229618]
[1761659831481,1.40989,4157.4,4157.3,3.5928]
[1761659831691,0.43490869,4157.4,4157.3,3.66719618]
[1761659831893,0.43295,4157.8,4157.3,4.10303837]
[1761659832193,0.43295,4157.8,4157.7,6.8006]
[1761659832386,3.2078,4158.6,4158.5,3.5928]
[1761659832790,3.64066,4158.6,4158.5,3.5928]
[1761659832995,1.08205,4159.1,4159.0,2.1035]
[1761659832996,0.9769,4159.1,4159.0,2.1035]
[1761659833191,0.00180067,4159.1,4159.0,2.1035]
[1761659833586,0.4328,4159.3,4159.2,4.2279]
[1761659833789,3.2078,4159.7,4159.6,2.1035]
[1761659833991,3.64055,4159.7,4159.6,3.5928]
[1761659834597,0.00186878,4159.7,4159.6,3.6648]
[1761659834893,0.00186878,4159.7,4159.6,3.5928]
[1761659835287,0.00186878,4159.7,4159.6,3.6648]
[1761659835491,0.00186878,4159.7,4159.6,3.5928]
[1761659837494,0.00186878,4159.7,4159.6,3.6648]
[1761659838090,0.00186878,4159.7,4159.6,3.5928]
[1761659838402,0.00186878,4159.7,4159.6,3.6648]
[1761659839090,0.00186878,4159.7,4159.6,3.5928]
[1761659840296,0.00186878,4159.7,4159.6,3.6648]
[1761659840493,3.2078,4160.7,4159.9,1.4893]
[1761659840705,4.4929,4160.7,4160.1,1.4893]
[1761659841401,4.1847,4160.7,4160.6,2.5317]
[1761659841599,3.21030273,4160.7,4160.6,3.5947427]
[1761659842097,6.53190273,4160.7,4160.6,0.0019427]
[1761659842494,6.60390273,4160.7,4160.6,0.0019427]
[1761659843504,6.53190273,4160.7,4160.6,0.0019427]
[1761659844098,6.60390273,4160.7,4160.6,0.0019427]
[1761659844502,6.53190273,4160.7,4160.6,0.0019427]
[1761659844804,6.60390273,4160.7,4160.6,0.0019427]
[1761659847001,6.53190273,4160.7,4160.6,0.0019427]
[1761659848608,6.60390273,4160.7,4160.6,0.0019427]
[1761659849405,47.40390273,4160.7,4160.6,0.0019427]
[1761659850605,47.33190273,4160.7,4160.6,0.0019427]
[1761659851007,47.40390273,4160.7,4160.6,0.0019427]
[1761659851808,55.40390273,4160.7,4160.6,0.0019427]
[1761659852400,46.35500273,4160.7,4159.5,4.6971]
[1761659852604,2.0365,4159.3,4159.2,3.1668]
[1761659852804,2.0365,4159.3,4159.2,1.4893]
[1761659852805,3.3215,4159.3,4159.2,1.4893]
[1761659853004,3.3935,4159.3,4159.2,1.4893]
[1761659853216,3.3215,4159.3,4159.2,1.4893]
[1761659853408,3.3215,4158.7,4158.6,1.4893]
[1761659853712,2.0365,4158.2,4158.1,2.5317]
[1761659854010,2.0365,4158.2,4158.1,2.53479215]
[1761659854715,3.2138,4158.2,4158.1,0.00309215]
[1761659856814,0.9835,4157.0,4156.9,1.4892]
[1761659857004,0.9835,4157.0,4156.9,2.4747]
[1761659857404,0.9835,4157.0,4156.9,3.5232]
[1761659857908,0.9835,4157.0,4156.9,1.49149918]
[1761659857909,1.97790157,4157.0,4156.9,1.49149918]
[1761659858111,3.08320157,4157.0,4156.9,0.00229918]
[1761659858514,40.8,4157.4,4157.3,3.5232]
[1761659858711,3.2078,4157.8,4157.7,3.5232]
[1761659859315,4.1913,4157.8,4157.7,3.5232]
[1761659859515,5.18639654,4157.8,4157.7,2.4747]
[1761659860413,5.25839654,4157.8,4157.7,2.4747]
[1761659860613,5.18639654,4157.8,4157.7,2.4747]
[1761659861204,5.25839654,4157.8,4157.7,1.4892]
[1761659861404,1.9762,4157.5,4157.4,2.0766]
[1761659861816,0.9835,4157.1,4157.0,2.4747]
[1761659862010,0.9835,4157.1,4157.0,3.5232]
[1761659862417,3.0815,4157.1,4157.0,1.4892]
[1761659862717,1.9762,4157.1,4157.0,1.4892]
[1761659863810,1.9762,4157.1,4157.0,2.4747]
[1761659864118,42.7762,4157.1,4157.0,3.5232]
[1761659864332,40.8,4157.1,4157.0,3.5232]
[1761659865620,40.8,4157.1,4157.0,2.4747]
[1761659866512,40.8,4157.1,4157.0,3.5232]
[1761659867213,3.2078,4157.3,4157.0,3.5232]
[1761659867421,3.2078,4157.3,4156.9,0.00229918]
[1761659867422,3.21019654,4157.8,4157.4,0.5874]
[1761659867616,3.21019654,4157.8,4157.4,1.5729]
[1761659867617,1.9762,4157.5,4157.4,1.5729]
[1761659867816,42.7762,4157.5,4157.4,1.5729]
[1761659868017,42.7762,4157.5,4157.0,1.4892]
[1761659868018,43.8815,4157.5,4157.0,1.4892]
[1761659868220,0.9835,4157.1,4157.0,2.4747]
[1761659868419,0.9835,4157.1,4157.0,3.5232]
[1761659868619,40.8,4157.5,4157.4,2.4747]
[1761659869420,2.098,4157.0,4156.9,0.00229918]
[1761659869724,3.0815,4157.0,4156.9,0.00229918]
[1761659870020,3.1535,4157.0,4156.9,0.00229918]
[1761659870415,3.0815,4156.3,4155.7,1.4892]
[1761659870920,1.1773,4156.2,4155.7,1.4892]
[1761659871122,0.9835,4155.8,4155.7,2.4747]
[1761659871323,0.9835,4155.8,4155.7,3.5232]
[1761659871625,0.9835,4156.2,4156.1,2.4747]
[1761659872122,1.9762,4156.2,4156.1,2.4747]
[1761659872819,3.2078,4156.4,4155.7,0.98797371]
[1761659872820,1.9762,4155.8,4155.7,0.98797371]
[1761659873119,3.0815,4155.8,4155.7,0.00247371]
[1761659873515,43.8815,4155.8,4155.7,0.00247371]
[1761659873721,42.7762,4155.8,4155.7,1.49167371]
[1761659874115,43.8815,4155.8,4155.7,1.49167371]
[1761659874318,1.9762,4154.8,4154.7,1.4892]
[1761659874812,1.9762,4154.8,4154.4,0.5874]
[1761659874813,2.098,4154.8,4154.4,0.5874]
[1761659875119,0.9835,4154.5,4154.4,2.6214]
[1761659875421,0.9835,4154.5,4154.4,4.11362955]
[1761659875422,0.00274625,4154.5,4154.4,4.11362955]
[1761659875719,0.00274625,4154.5,4154.4,4.18562955]
[1761659876318,0.00274625,4154.5,4154.4,4.11362955]
[1761659876527,0.00274625,4154.5,4154.4,4.18562955]
[1761659876820,0.00274625,4154.5,4154.4,4.11362955]
[1761659877028,0.98624625,4154.5,4154.4,4.11362955]
[1761659877524,0.00274625,4154.5,4154.4,4.11362955]
[1761659877725,0.00274625,4154.5,4154.4,4.18562955]
[1761659878022,0.00274625,4154.5,4154.4,4.11362955]
[1761659879223,0.00274625,4154.5,4154.4,4.18562955]
[1761659879420,0.00274625,4154.5,4154.4,4.11362955]
[1761659881730,0.98624625,4154.5,4154.4,4.11362955]
[1761659883023,0.00274625,4154.5,4154.4,4.18562955]
[1761659883230,0.00274625,4154.5,4154.4,7.39342955]
[1761659883624,0.00274625,4154.5,4154.4,7.32142955]
[1761659883927,0.00274625,4154.5,4154.4,7.75472955]
[1761659884129,3.2078,4155.4,4155.3,3.0958]
[1761659884429,3.2078,4155.4,4154.4,3.21082955]
[1761659884635,3.2078,4155.4,4154.4,3.64412955]
[1761659884930,40.8,4155.3,4154.4,3.21082955]
[1761659885126,40.80255205,4155.3,4154.4,3.21082955]
[1761659885427,40.80255205,4155.3,4154.4,3.64411955]
[1761659885930,40.80255205,4155.3,4154.4,3.21082955]
[1761659887228,40.80255205,4155.3,4154.4,0.00302955]
[1761659887229,3.2078,4154.8,4154.4,0.00302955]
[1761659888935,40.80255205,4155.3,4154.5,3.2078]
[1761659889137,40.80255205,4155.3,4154.5,3.2798]
[1761659889336,40.80255205,4155.3,4154.4,0.00302955]
[1761659889830,3.2078,4155.0,4154.4,0.00302955]
[1761659890229,3.2798,4155.0,4154.4,0.00302955]
[1761659890534,3.2078,4155.0,4154.4,0.00302955]
[1761659891435,3.2078,4155.0,4154.5,0.43328]
[1761659891733,3.2078,4155.0,4154.4,0.00302955]
[1761659900240,40.80255205,4155.3,4154.5,3.2078]
[1761659900435,3.2078,4155.0,4154.4,0.64129778]
[1761659900638,3.2078,4155.0,4154.4,0.00302955]
[1761659900839,3.2078,4155.0,4154.4,1.07459778]
[1761659901040,3.2078,4155.0,4154.5,0.43329]
[1761659901342,3.2078,4155.0,4154.6,1.07153823]
[1761659901549,3.2078,4155.0,4154.6,1.07154823]
[1761659901738,3.2078,4155.0,4154.8,0.43325]
[1761659902432,40.80255205,4155.3,4154.8,0.43325]
[1761659902638,40.80255205,4155.3,4154.7,0.63826823]
[1761659902837,40.80255205,4155.3,4155.0,0.63826823]
[1761659903141,40.80255205,4155.3,4155.2,0.63826823]
[1761659904237,0.00255205,4155.3,4155.1,0.92019134]
[1761659904437,0.86221553,4156.7,4155.7,1.08292]
[1761659904742,0.86221553,4156.7,4155.2,1.27748677]
[1761659904743,3.2078,4157.0,4156.5,0.64213583]
[1761659904943,3.2078,4157.0,4156.3,3.84993583]
[1761659905344,3.2078,4157.0,4156.3,3.2078]
[1761659905541,40.8,4156.9,4156.1,0.64213583]
[1761659905746,40.8,4156.9,4156.2,0.64213583]
[1761659906442,40.8,4156.9,4156.0,1.07526583]
[1761659906748,40.8,4156.9,4156.1,0.64213583]
[1761659907347,40.8,4156.9,4156.0,0.64213583]
[1761659907743,40.8,4156.9,4156.1,0.43312]
[1761659907940,3.21041568,4157.0,4156.3,3.2078]
[1761659908142,3.21041568,4157.0,4156.5,0.43307]
[1761659908342,3.21041568,4157.0,4156.5,0.43308]
[1761659908540,3.21041568,4157.0,4156.3,3.2078]
[1761659908744,3.21041568,4157.0,4156.3,3.6409]
[1761659909745,3.21041568,4157.0,4156.4,0.43309]
[1761659910638,3.21041568,4157.0,4156.3,3.2078]
[1761659910639,3.21041568,4157.0,4156.5,0.43308]
[1761659912244,3.21041568,4157.0,4156.4,0.43309]
[1761659912439,3.21041568,4157.0,4156.4,0.072]
[1761659913053,3.21041568,4157.0,4156.4,0.43309]